Cogmind - Beta 16.1 @@@ ROGUE MODE // 2026.04.06 @ 03:34:13 Player: KURIIRI Result: Destroyed by 9K-E88(R) with Subdweller Laser Performance ------------- Evolutions (0) 0 Regions Visited (2) 400 Robots Destroyed (39) 195 Value Destroyed (857) 857 Prototype IDs (0) 0 Alien Tech Used (0) 0 Bonus (0) 0 TOTAL SCORE: 1452 Bonus ------- None Cogmind --------- Core Integrity 0/250 Matter 285/300 Energy 100/100 System Corruption 0% Temperature Cool (6) Movement Rolling (110) Ox2 Location -10/Subcaves Parts ------- > --- POWER (1) -------- (None) > --- PROPULSION (2) --- Wheel > --- UTILITY (2) ------ Improved Heat Sink Large Storage Unit > --- WEAPON (2) ------- Small Laser > --- INVENTORY (15) --- Wheel High-capacity Matter Pod (200) High-capacity Matter Pod (130) Improved Terrain Scanner Light Armor Plating Assault Rifle Peak State ------------ > --- POWER ------------ Light Ion Engine > --- PROPULSION ------- Light Treads Light Treads > --- UTILITY ---------- Improved Heat Sink Small Storage Unit > --- WEAPON ----------- Assault Rifle Light Assault Rifle > --- INVENTORY -------- Light Ion Engine Wheel Wheel Compact Wheel [Rating: 9] Favorites ----------- Power Light Ion Engine Engine Light Ion Engine Propulsion Light Treads Treads Light Treads Leg Aluminum Leg Wheel Wheel Utility Large Storage Unit Device Improved Heat Sink Storage Large Storage Unit Protection Light Armor Plating Weapon Assault Rifle Energy Gun Small Laser Ballistic Gun Assault Rifle Build | -11 -10 -10 ------- Run | Yrd Mat Sub Slots Evolved . | . . . Power . | . . . Propulsion . | . . . Utility . | . . . Weapon . | . . . Parts Attached 16 | . 16 . Power 2 | . 2 . Engine 2 | . 2 . Core . | . . . Reactor . | . . . Propulsion 4 | . 4 . Treads 2 | . 2 . Leg . | . . . Wheel 2 | . 2 . Hover . | . . . Flight . | . . . Utility 4 | . 4 . Device 1 | . 1 . Storage 1 | . 1 . Processor . | . . . Hackware . | . . . Protection 2 | . 2 . Artifact . | . . . Weapon 6 | . 6 . Energy Gun 2 | . 2 . Energy Cannon . | . . . Ballistic Gun 4 | . 4 . Ballistic Cannon . | . . . Launcher . | . . . Special Weapon . | . . . Impact Weapon . | . . . Slashing Weapon . | . . . Piercing Weapon . | . . . Special Melee Weapon . | . . . Unidentified Prototypes . | . . . Parts Lost 10 | . 7 3 Power 3 | . 2 1 Propulsion 3 | . 2 1 Utility 1 | . 1 . Weapon 3 | . 2 1 Highest Loss Streak 5 | . 5 3 To Critical Strikes . | . . . Average Backups 7 | 6 7 6 Power . | 1 . . Propulsion 2 | 4 2 1 Utility 3 | . 3 4 Weapon . | 1 . 1 Tool/Special . | . . . Unused Backups 5 | . 2 3 Power . | . . . Propulsion . | . . . Utility 5 | . 2 3 Weapon . | . . . Tool/Special . | . . . Average Slot Usage (%) 92 | . 92 96 Engine 10 | . 10 13 Treads 19 | . 20 . Leg 2 | . 2 . Wheel 6 | . 4 27 Device 1 | . . 14 Storage 14 | . 14 14 Protection 9 | . 10 . Energy Gun 3 | . 1 27 Ballistic Gun 24 | . 26 . Peak Build Rating 9 | 6 9 9 Average Rating 7 | 6 6 8 On Entrance 7 | 6 6 9 Avg Prop Armor Cover (%) . | . . . Naked Turns . | . . . Heaviest Build 30 | 11 30 26 Greatest Support 40 | 20 40 26 Greatest Overweight (x) 8 | . 8 . Average Overweight (x) . | . . . Largest Inventory Capacity 15 | 8 15 15 Average Capacity 13 | 8 13 15 Most Carried 11 | 6 11 6 Average Carried 7 | 6 7 6 Final Capacity 15 | 8 15 15 Final Carried 6 | 6 6 6 Class Distribution -------------------- 92% | Mutant 7% | Scavenger-Mutant Dominant Class ---------------- Mutant | -10/Materials Scavenger-Mutant | -10/Subcaves Resources | -11 -10 -10 ----------- Run | Yrd Mat Sub Matter Collected 1303 | 205 1098 . Remotely . | . . . Salvage Created 1250 | 97 1153 . Parts 92 | 2 90 . Haulers Intercepted 2 | . 2 . Recyclers Shooed 2 | . 2 . Parts Field Recycled . | . . . Retrieved Matter . | . . . Parts Self-Destructed . | . . . Prevented . | . . . Parts Restored . | . . . Kills | -11 -10 -10 ------- Run | Yrd Mat Sub Combat Hostiles Destroyed 24 | . 24 . Guns 23 | . 23 . AOE 1 | . 1 . Classes Destroyed 9 | 2 7 . Worker 2 | . 2 . Builder 3 | . 3 . Tunneler 3 | 1 2 . Hauler 2 | . 2 . Recycler 1 | 1 . . Operator 1 | . 1 . Watcher 3 | . 3 . Swarmer 5 | . 5 . Grunt 19 | . 19 . Best Kill Streak 7 | 2 7 . Combat Bots Only 7 | . 7 . Max Kills in Single Turn 3 | 1 3 . Gunslinging 1 | . 1 . Exploded 1 | . 1 . Melee . | . . . Uniques/NPCs Destroyed . | . . . Combat | -11 -10 -10 -------- Run | Yrd Mat Sub Hostile Shots Fired 175 | . 150 25 Missed 47 | . 37 10 Hits 128 | . 113 15 Projectile 128 | . 113 15 Damage Taken 1532 | . 1220 312 Core 269 | . 164 105 Absorbed by Shields . | . . . Regen/Repaired (Parts) 141 | . 141 . Core Remaining (%) 100 | 100 . . Volleys Fired 136 | 5 121 10 Largest 2 | 2 2 2 Hottest 80 | 60 60 80 Shots Fired 270 | 10 240 20 Gun 270 | 10 240 20 Cannon . | . . . Launcher . | . . . Special . | . . . Kinetic 230 | 5 225 . Thermal 20 | . . 20 Explosive . | . . . Electromagnetic 20 | 5 15 . Robot Hit Streak 13 | 5 13 5 Robot Miss Streak 7 | 4 7 1 Penetration Max . | . . . Secondary Targets 4 | . 4 . Max Gunslinging Chain 1 | . 1 . Shots Hit Robots 178 | 5 157 16 Core Hits 66 | 3 61 2 Critical Kills 2 | . 2 . Critical Parts Destroyed 2 | . 2 . Critical Strikes 5 | . 5 . Destroy 4 | . 4 . Corrupt 1 | . 1 . Melee Attacks . | . . . Impact . | . . . Slashing . | . . . Piercing . | . . . Sneak Attacks . | . . . Combat Hostiles . | . . . Follow-up Attacks . | . . . Damage Inflicted 2317 | 106 2036 175 Guns 2160 | 60 1925 175 Cannons . | . . . Explosions 143 | 46 97 . Melee . | . . . Ramming 14 | . 14 . Kinetic 1788 | 33 1755 . Thermal 318 | 46 97 175 Explosive . | . . . Electromagnetic 197 | 27 170 . Impact . | . . . Slashing . | . . . Piercing . | . . . Highest Corruption . | . . . Average Corruption . | . . . Corruption Purged . | . . . Corruption Blocked . | . . . Overload Shots . | . . . Overflow Damage . | . . . Projectiles . | . . . Explosions . | . . . Melee . | . . . Knockbacks . | . . . Impact . | . . . Kinetic . | . . . Secondary . | . . . Self-Inflicted Damage . | . . . Shots . | . . . Rammed 4 | . 4 . Targets Rammed 4 | . 4 . Kicked . | . . . Crushed . | . . . Highest Temperature 51 | 20 51 . Average Temperature 9 | 15 8 . Received Heat Transfer 642 | . 594 48 Siege Activations . | . . . Martial Activations . | . . . Shielding Activations . | . . . Robots Disrupted . | . . . Combat Hostiles . | . . . Robots Corrupted 1 | . 1 . Combat Hostiles . | . . . Parts Fried 2 | . 2 . Impact Corruptions . | . . . Robots Melted . | . . . Combat Hostiles . | . . . Parts Melted . | . . . Heat Transferred 550 | . 150 400 Parts Sabotaged . | . . . Parts Stolen . | . . . Parts Stripped . | . . . Power Chain Reactions 3 | 1 2 . Alert | -11 -10 -10 ------- Run | Yrd Mat Sub Maximum Alert Level 1 | . 1 . Low Security (%) 88 | 100 87 . Level 1 11 | . 12 . Level 2 . | . . . Level 3 . | . . . Level 4 . | . . . Level 5 . | . . . High Security . | . . . Max Security . | . . . Peak Influence 276 | 10 276 . Initial . | . . . Average 81 | 3 82 . Influence Increases 842 | 10 832 . Destroy 0b10 Robot/C 480 | . 480 . Destroy 0b10 Robot/NC 75 | 10 65 . Destroy Leader 100 | . 100 . Successful Hack 38 | . 38 . Select Force Hacks 60 | . 60 . Disable Machine 15 | . 15 . Destroy Structure 14 | . 14 . Lose Combat Pursuer 60 | . 60 . Influence Decreases 804 | 10 583 211 Entered New Map 121 | . . 121 Time Decay 583 | 10 513 60 Lost Part 100 | . 70 30 Squads Dispatched 5 | . 5 . Investigation 4 | . 4 . Extermination . | . . . Reinforcement 1 | . 1 . Assault . | . . . Garrison . | . . . Intercept . | . . . Searches Triggered . | . . . Construction Impeded . | . . . Haulers Reinforced . | . . . Active Scanning Responses . | . . . Cargo Convoy Interrupts . | . . . Stealth | -11 -10 -10 --------- Run | Yrd Mat Sub Distress Signals . | . . . Communications Jammed . | . . . Distress Signals . | . . . Times Spotted 38 | . 36 2 Peak Tracking Total 5 | . 5 2 Tactical Retreats 3 | . 3 . Traps | -11 -10 -10 ------- Run | Yrd Mat Sub Traps Triggered 1 | . 1 . Indirectly . | . . . Trap Hack Attempts . | . . . Triggered . | . . . Disarmed . | . . . Reprogrammed . | . . . Reused . | . . . Traps Extracted . | . . . Installed . | . . . Triggered . | . . . Machines | -11 -10 -10 ---------- Run | Yrd Mat Sub Machines Disabled 1 | . 1 . Max in Single Turn 1 | . 1 . Machines Repaired . | . . . Machines Dismantled . | . . . Machines Sabotaged . | . . . Overloaded Fab Kills . | . . . Hacking | -11 -10 -10 --------- Run | Yrd Mat Sub Machines Accessed 9 | . 9 . Terminals 6 | . 6 . Fabricators . | . . . Repair Stations 1 | . 1 . Recycling Units 2 | . 2 . Scanalyzers . | . . . Garrison Access . | . . . Total Hacks 28 | . 28 . Successful 18 | . 18 . Failed 10 | . 10 . Catastrophic . | . . . Database Lockouts . | . . . Manual 22 | . 22 . Terminals 23 | . 23 . Fabricators . | . . . Repair Stations 3 | . 3 . Recycling Units 2 | . 2 . Scanalyzers . | . . . Garrison Access . | . . . Terminal Hacks 3 | . 3 . Robot Analysis 2 | . 2 . Locate Traps 1 | . 1 . Fabricator Hacks . | . . . Repair Station Hacks 2 | . 2 . Scan Component 1 | . 1 . Repair 1 | . 1 . Recycling Unit Hacks . | . . . Scanalyzer . | . . . Garrison Access Hacks . | . . . Unauthorized Hacks 13 | . 13 . Terminals 10 | . 10 . Track 1 | . 1 . Botnet 2 | . 2 . Disrupt 1 | . 1 . Operators 1 | . 1 . Skim 5 | . 5 . Fabricators . | . . . Repair Stations 1 | . 1 . Patch 1 | . 1 . Recycling Units 2 | . 2 . Tunnel 2 | . 2 . Scanalyzers . | . . . Garrison Access . | . . . Data Cores Recovered . | . . . Used . | . . . Hacking Detections 7 | . 7 . Full Trace Events . | . . . Feedback Events . | . . . Feedback Blocked . | . . . Robot Schematics Acquired . | . . . Robots Built . | . . . Authchips . | . . . Time . | . . . Total Robot Build Rating . | . . . Part Schematics Acquired . | . . . Parts Built . | . . . Authchips . | . . . Time . | . . . Total Part Build Rating . | . . . Part Studies Acquired . | . . . Parts Repaired 1 | . 1 . Time 26 | . 26 . Parts Recycled . | . . . Recycled Matter . | . . . Retrieved Matter . | . . . Retrieved Components . | . . . Parts Scanalyzed . | . . . Part Schematics Acquired . | . . . Parts Damaged . | . . . Bothacking | -11 -10 -10 ------------ Run | Yrd Mat Sub Used RIF Installer . | . . . Robots Hacked . | . . . Non-combat . | . . . Combat . | . . . Robot Hacks Applied . | . . . Relay Couplers Released . | . . . Fabnet Peak Effective % . | . . . Robots Rewired . | . . . Allies Hacked . | . . . Hacks Repelled . | . . . Allies | -11 -10 -10 -------- Run | Yrd Mat Sub Total Allies . | . . . Largest Group . | . . . Highest-Rated Group . | . . . Highest-Rated Ally . | . . . Total Orders . | . . . Ally Attacks . | . . . Total Damage . | . . . Kills . | . . . Allies Corrupted . | . . . Allies Melted . | . . . Intel | -11 -10 -10 ------- Run | Yrd Mat Sub Active Infowar (turns) . | . . . Robot Analysis Total 2 | . 2 . Derelict Logs Recovered . | . . . Drone Launches . | . . . Drone Recoveries . | . . . Exploration | -11 -10 -10 ------------- Run | Yrd Mat Sub Turns Passed 2100 | 28 1947 125 Spaces Moved 942 | 12 891 39 Core 1 | . 1 . Treads 588 | . 588 . Legs 88 | 12 76 . Wheels 265 | . 226 39 Hover . | . . . Flight . | . . . Fastest Speed 90 | 120 90 90 Average Speed 136 | 120 139 90 Slowest Speed 450 | 120 450 90 Overloaded Moves . | . . . Propulsion Burnouts . | . . . Robots Hopped . | . . . Potential Cave-ins . | . . . Cave-ins Triggered . | . . . Exploration Rate (%) 34 | 2 96 5 Regions Visited 2 Branch Regions 1 Pre-discovered Areas 4 | . 4 . Known Exits Taken . | . . . Unknown Exits Taken 2 | 1 1 . Scrap Searched . | . . . Spaces Dug . | . . . Terrain Destroyed 15 | 2 13 . Melee . | . . . Projectile . | . . . AOE 15 | 2 13 . Terrain Rammed . | . . . Walls Destroyed . | . . . Machines Disabled . | . . . Actions | -11 -10 -10 --------- Run | Yrd Mat Sub Total 1486 | 16 1361 109 Wait 370 | . 310 60 Move 940 | 11 890 39 Hop . | . . . Pick Up 10 | . 10 . Fast Attach 2 | . 2 . Attach 10 | . 10 . Detach . | . . . Swap 8 | . 8 . Drop 6 | . 6 . Fire 136 | 5 121 10 Melee . | . . . Ram . | . . . Kick . | . . . Crush 4 | . 4 . Escape Stasis . | . . . Rewire . | . . . Trap . | . . . Miscellaneous . | . . . Route ------- -11/Scrapyard -10/Materials (discovered 5 exits: *Mat x3 / [*Min] / [*Sub]) -10/Subcaves History --------- Turn | Location | Event 10 | -11/Scrapyard | Discovered new exit (range 2) 29 | -11/Scrapyard | Entered Materials 232 | -10/Materials | Discovered new exit (range 14) 328 | -10/Materials | Build established: Mutant 478 | -10/Materials | Discovered new exit (range 10) 802 | -10/Materials | Discovered new exit (range 13) 853 | -10/Materials | Discovered new exit (range 8) 1071 | -10/Materials | Repaired Lgt. Armor Plating 1489 | -10/Materials | Learned location of Recycling (-9) 1536 | -10/Materials | Loaded intel: 2 recycling unit locations 1561 | -10/Materials | Core integrity fell below 50% 1571 | -10/Materials | Learned Storage stockpile data 1596 | -10/Materials | Loaded intel: 1 repair station location 1612 | -10/Materials | Identified exit to Materials 1612 | -10/Materials | Learned location of 1 exit from Materials 1618 | -10/Materials | Learned Materials stockpile data 1659 | -10/Materials | Learned location of 3 exits from Materials 1664 | -10/Materials | Destroyed 7 combat bots 1670 | -10/Materials | Lost 5 parts (1p2n1u1w) 1694 | -10/Materials | Learned Storage trap positions 1976 | -10/Materials | Entered Subcaves 1977 | -10/Subcaves | Approached by a straggling Scientist 2082 | -10/Subcaves | Core integrity fell below 20% 2101 | -10/Subcaves | Destroyed by 9K-E88(R) with Subdweller Laser Last Messages --------------- Channel. 01938_ Acquired Sml. Laser. 01944_ Dropped Lgt. Assault Rifle. 01944_ Acquired Sml. Laser. LOCATION=UNKNOWN AMBIENT_HEAT=-10 GOAL=ESCAPE 01977_ V9-373(c): "Thank the algorithms! I was beginning to lose hope I'd never make it past all the Subs lurking out here." 01980_ V9-373(c): "Hey, let me tag along and I can get us both out of this nasty situation. At least I think I can... The group I got separated from was talking about a shortcut back to the UFD." V9-373(c): "I think it's somewhere southeast of here" 02091_ Com. Wheel destroyed. 02099_ Lgt. Ion Engine destroyed. 02099_ Sml. Laser destroyed. Map ----- +----------------------------------------------------+ | | | | | | | ?????????????????????????????????????????????????? | | ?????????????????????????????????????????????????? | | ?????????????????????????????????????????????????? | | ?????????????????????????????????????????????????? | | ?????????????????????????????????????????????????? | | ?????????????????????????????????????????????????? | | ?????????????????????????????????????????????????? | | ?????????????????????????????????????????????????? | | ?????????????????????????????????????????????????? | | ?????????????????????????????????????????????????? | | ?????????????????????????????????????????????????? | | ?????????????????????????????????????????????????? | | ?????????????????????????????????????????????????? | | ?????????????????????????????????????????????????? | | ????#########??????###?????????####??????????????? | | ##### # # ###??## ##????#### #####??????????? | | #### #?### ???????????? | | ## #?### ?????????????? | | # # # # #??# ???????????????? | | ### ######### #??# #????????????????? | | ??###???????## #??# R #????????????????? | | ?????????????#### ##?# ### ""??????????? | | ????????????????## ### @ " ??????????? | | ?????????????????## R #??????????? | | ??????????????????# #??????????? | | ??????????????????## ## #??????????? | | ???????????????????## c #???????????????? | | ????????????????????## #???????????????? | | ?????????????????????# #???????????????? | | ?????????????????????## ####???????????????? | | ??????????????????????# #??????????????????? | | ??????????????????????## ?????????????????? | | ???????????????????????## ????????????????? | | ?????????????????????????# ??????????????? | | ?????????????????????????? ??????????????? | | ?????????????????????????? ??????????????? | | ?????????????????????????? ## ???????????????? | | ?????????????????????????? ?# ?????????????????? | | ??????????????????????????? ????????????????????? | | ?????????????????????????????????????????????????? | | ?????????????????????????????????????????????????? | | ?????????????????????????????????????????????????? | | ?????????????????????????????????????????????????? | | ?????????????????????????????????????????????????? | | ?????????????????????????????????????????????????? | | ?????????????????????????????????????????????????? | | ?????????????????????????????????????????????????? | +----------------------------------------------------+ Best States ------------- Heat Dissipation 39 Energy Generation 10 Energy Capacity 125 Matter Stores 300 Matter Capacity 300 Sight Range 16 Terrain Scan Density 10 Armor Coverage 150 Evasion (%) 55 Recoil Reduction 2 Item Schematics ----------------- None Robot Schematics ------------------ None Fabricated ------------ Nothing Repaired ---------- Lgt. Armor Plating | 10% | -10/Materials Studied --------- None Alien Tech Used ----------------- None Achievements -------------- None Challenges ------------ None Game ------ Seed ColdVortexChainsword Manual? 0 Play Time 00:12:12 Cumulative 390.6 hours Start 2026.04.06 @ 03:21:05 End 2026.04.06 @ 03:34:13 Sessions 1 Manual Loads 0 Difficulty Rogue Special Mode None Game No. 334 Rogue 298 Adventurer 36 Explorer 0 Win Type - Total 5 Types 2/0/0/1/0/0/0/2/0/0 Lore% 74 Gallery% 66 Achievement% 55 Wizard Run 0 Options --------- Layout 1 ASCII 0 Keyboard 0 Movement Numpad Keybinds 0 Fullscreen 1 Font 48/Smallcaps Map View 50x35 Zoom Use 0% Tactical HUD 1 Map Filters NONE Filters NONE Steam 1 RUN: 8af0c47d-c80a-48ca-b61f-5c50be0d76d3